[Event "*** Titled Tuesday Blitz"]
[Site "Chess.com"]
[Date "2020.03.03"]
[Round "7"]
[White "ehrenfeld"]
[Black "norwaytoadog"]
[Result "1-0"]
[WhiteElo "2475"]
[BlackElo "2275"]
[TimeControl "180+1"]
[EndTime "14:17:02 PST"]
[Termination "ehrenfeld won on time"]

1. e4 {[%clk 0:03:00.9]} 1... e5 {[%clk 0:02:59.4]} 2. Nc3 {[%clk 0:03:00.3]}
2... Nf6 {[%clk 0:02:58.9]} 3. f4 {[%clk 0:02:59.9]} 3... d5 {[%clk 0:02:58.3]}
4. fxe5 {[%clk 0:02:59.8]} 4... Nxe4 {[%clk 0:02:58.5]} 5. Qf3 {[%clk
0:02:59.8]} 5... Nxc3 {[%clk 0:02:48]} 6. dxc3 {[%clk 0:02:59.4]} 6... Be6
{[%clk 0:02:47.6]} 7. Bf4 {[%clk 0:02:58.5]} 7... Bc5 {[%clk 0:02:43.6]} 8.
O-O-O {[%clk 0:02:56.9]} 8... Qe7 {[%clk 0:02:38.5]} 9. Ne2 {[%clk 0:02:50.1]}
9... Nc6 {[%clk 0:02:34.3]} 10. Nd4 {[%clk 0:02:49.7]} 10... Nxd4 {[%clk
0:02:18.6]} 11. cxd4 {[%clk 0:02:49.1]} 11... Bb6 {[%clk 0:02:17.4]} 12. Kb1
{[%clk 0:02:42.2]} 12... O-O-O {[%clk 0:02:09.2]} 13. Qg3 {[%clk 0:02:38.5]}
13... Rdg8 {[%clk 0:01:59]} 14. h4 {[%clk 0:02:33.6]} 14... Qd7 {[%clk
0:01:54.5]} 15. Be2 {[%clk 0:02:31.2]} 15... h5 {[%clk 0:01:45.3]} 16. Rhf1
{[%clk 0:02:27.1]} 16... Qa4 {[%clk 0:01:32.3]} 17. Qe3 {[%clk 0:02:21.8]} 17...
Rd8 {[%clk 0:01:23.5]} 18. Bg3 {[%clk 0:02:16.8]} 18... Kb8 {[%clk 0:01:12.8]}
19. Qb3 {[%clk 0:02:13.2]} 19... Qd7 {[%clk 0:01:08.8]} 20. Bb5 {[%clk
0:02:10.4]} 20... c6 {[%clk 0:01:07.1]} 21. Be2 {[%clk 0:02:04.2]} 21... Ka8
{[%clk 0:01:01.8]} 22. Qb4 {[%clk 0:01:56.8]} 22... Bc7 {[%clk 0:00:55.3]} 23.
Bd3 {[%clk 0:01:52.5]} 23... Rb8 {[%clk 0:00:54.4]} 24. Rf2 {[%clk 0:01:51.2]}
24... Bd8 {[%clk 0:00:51.8]} 25. Re1 {[%clk 0:01:49.6]} 25... Be7 {[%clk
0:00:51.2]} 26. Qa5 {[%clk 0:01:48.4]} 26... b6 {[%clk 0:00:49.1]} 27. Qd2
{[%clk 0:01:46.7]} 27... c5 {[%clk 0:00:46.1]} 28. c3 {[%clk 0:01:42.8]} 28...
c4 {[%clk 0:00:44.6]} 29. Bc2 {[%clk 0:01:41.9]} 29... b5 {[%clk 0:00:45]} 30.
b4 {[%clk 0:01:33.3]} 30... cxb3 {[%clk 0:00:39.9]} 31. axb3 {[%clk 0:01:33]}
31... Rhc8 {[%clk 0:00:39.6]} 32. Rf3 {[%clk 0:01:08.2]} 32... Qc7 {[%clk
0:00:35.2]} 33. Kb2 {[%clk 0:01:04.7]} 33... Rb6 {[%clk 0:00:22.4]} 34. Ra1
{[%clk 0:00:59.4]} 34... Rc6 {[%clk 0:00:22.4]} 35. Bd1 {[%clk 0:00:39.5]} 35...
b4 {[%clk 0:00:15.2]} 36. Be1 {[%clk 0:00:34.5]} 36... bxc3+ {[%clk 0:00:13.6]}
37. Rxc3 {[%clk 0:00:33.7]} 37... Qb6 {[%clk 0:00:05.8]} 38. Rxc6 {[%clk
0:00:32.6]} 38... Rxc6 {[%clk 0:00:05]} 39. Bf2 {[%clk 0:00:26.6]} 39... Bb4
{[%clk 0:00:03.6]} 40. Qd3 {[%clk 0:00:25.5]} 40... Bc3+ {[%clk 0:00:03.8]} 41.
Qxc3 {[%clk 0:00:25.2]} 41... Rxc3 {[%clk 0:00:03.8]} 42. Kxc3 {[%clk
0:00:25.5]} 42... Qc6+ {[%clk 0:00:04.1]} 43. Kb2 {[%clk 0:00:25.3]} 43... Qb6
{[%clk 0:00:04.1]} 44. Rc1 {[%clk 0:00:23.8]} 44... Qb4 {[%clk 0:00:04.1]} 45.
Rc3 {[%clk 0:00:23.4]} 45... Qa5 {[%clk 0:00:03.9]} 46. Bc2 {[%clk 0:00:22.5]}
46... Qa6 {[%clk 0:00:03.5]} 47. Bd3 {[%clk 0:00:21.8]} 47... Qb6 {[%clk
0:00:03.9]} 48. Be3 {[%clk 0:00:21.2]} 48... a5 {[%clk 0:00:04.1]} 49. g3 {[%clk
0:00:20.5]} 49... a4 {[%clk 0:00:04.3]} 50. Ka3 {[%clk 0:00:17.1]} 50... Qa5
{[%clk 0:00:03.9]} 51. b4 {[%clk 0:00:16.9]} 51... Qb6 {[%clk 0:00:03.8]} 52.
Rc5 {[%clk 0:00:15.9]} 52... Bg4 {[%clk 0:00:02.4]} 53. Bb5 {[%clk 0:00:15.3]}
53... Qd8 {[%clk 0:00:01.9]} 54. Bc6+ {[%clk 0:00:13.8]} 54... Ka7 {[%clk
0:00:01.2]} 55. Bg5 {[%clk 0:00:09.8]} 55... f6 {[%clk 0:00:01.1]} 56. exf6
{[%clk 0:00:09.5]} 56... gxf6 {[%clk 0:00:01.4]} 57. Bf4 {[%clk 0:00:09.6]}
57... Qe7 {[%clk 0:00:01.3]} 58. Bxd5 {[%clk 0:00:05.8]} 1-0

[Event "*** Titled Tuesday Blitz"]
[Site "Chess.com"]
[Date "2020.03.03"]
[Round "7"]
[White "GadimbayliA"]
[Black "HomayoonTofighi"]
[Result "1/2-1/2"]
[WhiteElo "2898"]
[BlackElo "2642"]
[TimeControl "180+1"]
[EndTime "14:17:07 PST"]
[Termination "Game drawn - insufficient material"]

1. e4 {[%clk 0:03:00.9]} 1... e6 {[%clk 0:02:57.6]} 2. d4 {[%clk 0:03:00.6]}
2... d5 {[%clk 0:02:57.9]} 3. Nd2 {[%clk 0:03:01]} 3... Be7 {[%clk 0:02:55.7]}
4. c3 {[%clk 0:03:00.6]} 4... Nc6 {[%clk 0:02:50.9]} 5. e5 {[%clk 0:02:59.3]}
5... f6 {[%clk 0:02:47.5]} 6. Ngf3 {[%clk 0:02:54.3]} 6... Nh6 {[%clk
0:02:43.6]} 7. Bd3 {[%clk 0:02:51.5]} 7... fxe5 {[%clk 0:02:39.6]} 8. Nxe5
{[%clk 0:02:46.1]} 8... Nxe5 {[%clk 0:02:35.6]} 9. dxe5 {[%clk 0:02:47]} 9...
Nf7 {[%clk 0:02:36.4]} 10. Nf3 {[%clk 0:02:46.5]} 10... c5 {[%clk 0:02:33.2]}
11. b3 {[%clk 0:02:43.6]} 11... Qc7 {[%clk 0:02:30]} 12. Qe2 {[%clk 0:02:37.5]}
12... Bd7 {[%clk 0:02:28]} 13. h4 {[%clk 0:02:37.6]} 13... O-O-O {[%clk
0:02:25.2]} 14. Bf4 {[%clk 0:02:37.1]} 14... Qa5 {[%clk 0:02:17.8]} 15. Rc1
{[%clk 0:02:23.4]} 15... h6 {[%clk 0:02:16.2]} 16. h5 {[%clk 0:02:14.9]} 16...
Ng5 {[%clk 0:02:13.3]} 17. Nxg5 {[%clk 0:01:54]} 17... Bxg5 {[%clk 0:02:07.8]}
18. Bxg5 {[%clk 0:01:44.7]} 18... hxg5 {[%clk 0:02:08.7]} 19. O-O {[%clk
0:01:38.8]} 19... Rdf8 {[%clk 0:02:04.5]} 20. b4 {[%clk 0:01:17.5]} 20... Qc7
{[%clk 0:02:00.4]} 21. c4 {[%clk 0:01:17.8]} 21... d4 {[%clk 0:01:57.8]} 22.
bxc5 {[%clk 0:01:14]} 22... Qxc5 {[%clk 0:01:54]} 23. Be4 {[%clk 0:01:13.1]}
23... Bc6 {[%clk 0:01:48]} 24. Rcd1 {[%clk 0:01:08]} 24... Qxe5 {[%clk
0:01:37.2]} 25. Rfe1 {[%clk 0:01:03.8]} 25... Qxe4 {[%clk 0:01:34.4]} 26. Qxe4
{[%clk 0:01:04.7]} 26... Bxe4 {[%clk 0:01:35.3]} 27. Rxe4 {[%clk 0:01:05.3]}
27... Rxh5 {[%clk 0:01:31.7]} 28. Rdxd4 {[%clk 0:01:04.8]} 28... Rh6 {[%clk
0:01:27.8]} 29. Rd6 {[%clk 0:01:00.5]} 29... Rhf6 {[%clk 0:01:19.3]} 30. f3
{[%clk 0:00:59.2]} 30... Re8 {[%clk 0:01:19]} 31. Kf2 {[%clk 0:00:56.1]} 31...
Kc7 {[%clk 0:01:17.2]} 32. Rdd4 {[%clk 0:00:55]} 32... Rf5 {[%clk 0:01:08.5]}
33. Kg3 {[%clk 0:00:54]} 33... Ra5 {[%clk 0:01:03.7]} 34. Rd2 {[%clk 0:00:54.1]}
34... Re7 {[%clk 0:00:57.5]} 35. Kg4 {[%clk 0:00:52.3]} 35... Rc5 {[%clk
0:00:53.4]} 36. Rde2 {[%clk 0:00:50.2]} 36... Kd7 {[%clk 0:00:50.7]} 37. Re5
{[%clk 0:00:36.2]} 37... Rxc4+ {[%clk 0:00:48.4]} 38. Kxg5 {[%clk 0:00:36.6]}
38... b6 {[%clk 0:00:45.3]} 39. f4 {[%clk 0:00:36.7]} 39... Kd6 {[%clk
0:00:45.4]} 40. f5 {[%clk 0:00:34.7]} 40... Ra4 {[%clk 0:00:40.6]} 41. Rxe6+
{[%clk 0:00:31.2]} 41... Rxe6 {[%clk 0:00:40.7]} 42. Rxe6+ {[%clk 0:00:30.7]}
42... Kd5 {[%clk 0:00:37.3]} 43. Re7 {[%clk 0:00:29]} 43... Rxa2 {[%clk
0:00:26.8]} 44. g4 {[%clk 0:00:29]} 44... a5 {[%clk 0:00:27.2]} 45. Rxg7 {[%clk
0:00:28.5]} 45... b5 {[%clk 0:00:24.1]} 46. f6 {[%clk 0:00:27.9]} 46... b4
{[%clk 0:00:19.4]} 47. Ra7 {[%clk 0:00:19]} 47... Kc4 {[%clk 0:00:17.8]} 48. f7
{[%clk 0:00:15.4]} 48... Rf2 {[%clk 0:00:17.2]} 49. Kh6 {[%clk 0:00:11.6]} 49...
b3 {[%clk 0:00:17.6]} 50. g5 {[%clk 0:00:09.2]} 50... b2 {[%clk 0:00:14.2]} 51.
Rc7+ {[%clk 0:00:09.3]} 51... Kd3 {[%clk 0:00:13.9]} 52. Rb7 {[%clk 0:00:07.3]}
52... Rxf7 {[%clk 0:00:14.5]} 53. Rxb2 {[%clk 0:00:05.7]} 53... Ra7 {[%clk
0:00:14.9]} 54. g6 {[%clk 0:00:04.9]} 54... Kc3 {[%clk 0:00:15.8]} 55. Rh2
{[%clk 0:00:04]} 55... a4 {[%clk 0:00:16.2]} 56. g7 {[%clk 0:00:04.4]} 56... Ra8
{[%clk 0:00:16]} 57. Rf2 {[%clk 0:00:04]} 57... Rg8 {[%clk 0:00:16.3]} 58. Rf8
{[%clk 0:00:03.5]} 58... Rxg7 {[%clk 0:00:16.5]} 59. Kxg7 {[%clk 0:00:04.4]}
59... a3 {[%clk 0:00:17.4]} 60. Rc8+ {[%clk 0:00:05.1]} 60... Kb2 {[%clk
0:00:18]} 61. Rb8+ {[%clk 0:00:05.5]} 61... Ka1 {[%clk 0:00:18.9]} 62. Ra8
{[%clk 0:00:06.1]} 62... a2 {[%clk 0:00:19.8]} 63. Rxa2+ {[%clk 0:00:06.6]}
63... Kxa2 {[%clk 0:00:20.7]} 1/2-1/2

[Event "*** Titled Tuesday Blitz"]
[Site "Chess.com"]
[Date "2020.03.03"]
[Round "7"]
[White "GCamachoMartinez"]
[Black "MartinMatthiesen"]
[Result "0-1"]
[WhiteElo "2395"]
[BlackElo "2597"]
[TimeControl "180+1"]
[EndTime "14:17:21 PST"]
[Termination "MartinMatthiesen won on time"]

1. d4 {[%clk 0:03:00.9]} 1... Nf6 {[%clk 0:02:59]} 2. c4 {[%clk 0:03:00.6]} 2...
g6 {[%clk 0:02:59.1]} 3. Nc3 {[%clk 0:03:00]} 3... Bg7 {[%clk 0:02:59.1]} 4. e4
{[%clk 0:02:59]} 4... d6 {[%clk 0:02:59.2]} 5. Bd3 {[%clk 0:02:59.5]} 5... O-O
{[%clk 0:02:59.1]} 6. Nge2 {[%clk 0:03:00.1]} 6... Nc6 {[%clk 0:02:53.4]} 7. O-O
{[%clk 0:02:53.9]} 7... Nh5 {[%clk 0:02:52.7]} 8. Be3 {[%clk 0:02:50.6]} 8... e5
{[%clk 0:02:52]} 9. d5 {[%clk 0:02:45.9]} 9... Ne7 {[%clk 0:02:51.8]} 10. c5
{[%clk 0:02:40.3]} 10... f5 {[%clk 0:02:50.2]} 11. f3 {[%clk 0:02:40]} 11... Nf6
{[%clk 0:02:16.4]} 12. Rc1 {[%clk 0:02:30.2]} 12... fxe4 {[%clk 0:02:15.3]} 13.
fxe4 {[%clk 0:02:29.5]} 13... Ng4 {[%clk 0:02:14.4]} 14. Qd2 {[%clk 0:02:29.4]}
14... Nxe3 {[%clk 0:02:12.4]} 15. Qxe3 {[%clk 0:02:29.2]} 15... Rxf1+ {[%clk
0:02:00.6]} 16. Rxf1 {[%clk 0:02:28.1]} 16... Kh8 {[%clk 0:01:58]} 17. b4 {[%clk
0:02:14.5]} 17... Ng8 {[%clk 0:01:56.1]} 18. Nc1 {[%clk 0:02:03]} 18... a5
{[%clk 0:01:41.9]} 19. bxa5 {[%clk 0:02:00.5]} 19... Rxa5 {[%clk 0:01:38.4]} 20.
Nb3 {[%clk 0:02:00]} 20... Ra8 {[%clk 0:01:29.9]} 21. cxd6 {[%clk 0:01:58.4]}
21... cxd6 {[%clk 0:01:29.3]} 22. Qf2 {[%clk 0:01:40.7]} 22... Nf6 {[%clk
0:01:26.6]} 23. Be2 {[%clk 0:01:39.4]} 23... Bd7 {[%clk 0:01:13.5]} 24. Bf3
{[%clk 0:01:18.4]} 24... Rc8 {[%clk 0:01:01.1]} 25. Rc1 {[%clk 0:01:16.4]} 25...
Qc7 {[%clk 0:00:36.1]} 26. Ne2 {[%clk 0:01:12]} 26... Qb8 {[%clk 0:00:31.4]} 27.
Qe3 {[%clk 0:01:06.1]} 27... h5 {[%clk 0:00:29.7]} 28. Rxc8+ {[%clk 0:01:03]}
28... Qxc8 {[%clk 0:00:29.3]} 29. Qc3 {[%clk 0:01:03.2]} 29... Qd8 {[%clk
0:00:28.2]} 30. Qb4 {[%clk 0:00:59.7]} 30... Qc7 {[%clk 0:00:27.3]} 31. Nc3
{[%clk 0:00:59.3]} 31... Bh6 {[%clk 0:00:23.5]} 32. h3 {[%clk 0:00:55.1]} 32...
Be3+ {[%clk 0:00:20.4]} 33. Kf1 {[%clk 0:00:54.7]} 33... b6 {[%clk 0:00:17.7]}
34. Be2 {[%clk 0:00:54.3]} 34... Kg7 {[%clk 0:00:16.6]} 35. a4 {[%clk
0:00:52.6]} 35... Bc8 {[%clk 0:00:16]} 36. Bd3 {[%clk 0:00:50.3]} 36... Qf7
{[%clk 0:00:15.5]} 37. Ke2 {[%clk 0:00:50.1]} 37... Ng4 {[%clk 0:00:13.7]} 38.
Nd1 {[%clk 0:00:34.9]} 38... Bc5 {[%clk 0:00:13.2]} 39. Nxc5 {[%clk 0:00:30.3]}
39... bxc5 {[%clk 0:00:12.4]} 40. Qb8 {[%clk 0:00:30.7]} 40... Qf8 {[%clk
0:00:10.1]} 41. a5 {[%clk 0:00:28.9]} 41... Nf6 {[%clk 0:00:08.7]} 42. Qc7+
{[%clk 0:00:28.1]} 42... Kh6 {[%clk 0:00:07.9]} 43. a6 {[%clk 0:00:28.1]} 43...
c4 {[%clk 0:00:07.7]} 44. Bxc4 {[%clk 0:00:23.9]} 44... Nxe4 {[%clk 0:00:07.9]}
45. a7 {[%clk 0:00:19.7]} 45... Qf4 {[%clk 0:00:06.5]} 46. Qa5 {[%clk
0:00:16.6]} 46... Ng3+ {[%clk 0:00:06]} 47. Kd3 {[%clk 0:00:16.1]} 47... Bf5+
{[%clk 0:00:06]} 48. Kc3 {[%clk 0:00:16]} 48... Qd4+ {[%clk 0:00:06.2]} 49. Kb4
{[%clk 0:00:13.3]} 49... Ne4 {[%clk 0:00:05.8]} 50. a8=Q {[%clk 0:00:10.9]}
50... Qd2+ {[%clk 0:00:05.6]} 51. Kb5 {[%clk 0:00:09.9]} 51... Qxd1 {[%clk
0:00:05.9]} 52. Qh8+ {[%clk 0:00:08.2]} 52... Kg5 {[%clk 0:00:06.3]} 53. Qad8+
{[%clk 0:00:05.6]} 53... Kf4 {[%clk 0:00:06.7]} 54. Qh6+ {[%clk 0:00:05.2]}
54... Kg3 {[%clk 0:00:06.2]} 55. Qe3+ {[%clk 0:00:04.4]} 55... Kh2 {[%clk
0:00:06.7]} 0-1

[Event "*** Titled Tuesday Blitz"]
[Site "Chess.com"]
[Date "2020.03.03"]
[Round "7"]
[White "KerryStead"]
[Black "HanSchut"]
[Result "1-0"]
[WhiteElo "2150"]
[BlackElo "2269"]
[TimeControl "180+1"]
[EndTime "14:17:22 PST"]
[Termination "KerryStead won by resignation"]

1. d4 {[%clk 0:03:00.9]} 1... Nf6 {[%clk 0:02:59.2]} 2. f3 {[%clk 0:03:00.7]}
2... d5 {[%clk 0:02:57.3]} 3. e4 {[%clk 0:03:00]} 3... dxe4 {[%clk 0:02:51.5]}
4. Nc3 {[%clk 0:02:59.2]} 4... c5 {[%clk 0:02:39.6]} 5. Bb5+ {[%clk 0:02:57.2]}
5... Bd7 {[%clk 0:02:33.9]} 6. dxc5 {[%clk 0:02:56.1]} 6... a6 {[%clk
0:02:30.6]} 7. Bxd7+ {[%clk 0:02:51.7]} 7... Nbxd7 {[%clk 0:02:26]} 8. Be3
{[%clk 0:02:49.7]} 8... exf3 {[%clk 0:02:14.3]} 9. Nxf3 {[%clk 0:02:48.3]} 9...
e5 {[%clk 0:02:13.9]} 10. O-O {[%clk 0:02:34.1]} 10... Bxc5 {[%clk 0:02:07.9]}
11. Bxc5 {[%clk 0:02:32.7]} 11... Nxc5 {[%clk 0:02:08.8]} 12. Qxd8+ {[%clk
0:02:32.3]} 12... Rxd8 {[%clk 0:02:09.7]} 13. Nxe5 {[%clk 0:02:32.4]} 13... O-O
{[%clk 0:02:08.8]} 14. Rad1 {[%clk 0:02:28.3]} 14... h6 {[%clk 0:01:54]} 15. h3
{[%clk 0:02:24]} 15... b5 {[%clk 0:01:46.5]} 16. Nc6 {[%clk 0:02:10.2]} 16...
Rxd1 {[%clk 0:01:30.6]} 17. Rxd1 {[%clk 0:02:08.5]} 17... Re8 {[%clk 0:01:31.1]}
18. Kf1 {[%clk 0:02:00.5]} 18... Nce4 {[%clk 0:01:18.6]} 19. Nxe4 {[%clk
0:01:53.6]} 19... Nxe4 {[%clk 0:01:18.5]} 20. Rd8 {[%clk 0:01:47.9]} 20... Rxd8
{[%clk 0:01:07.4]} 21. Nxd8 {[%clk 0:01:47.4]} 21... Kf8 {[%clk 0:01:03.9]} 22.
Ke2 {[%clk 0:01:44.8]} 22... Ke7 {[%clk 0:00:58.4]} 23. Nc6+ {[%clk 0:01:43.7]}
23... Kd6 {[%clk 0:00:58.2]} 24. Nb4 {[%clk 0:01:41.2]} 24... a5 {[%clk
0:00:56.5]} 25. Nd3 {[%clk 0:01:40.5]} 25... f5 {[%clk 0:00:54.3]} 26. g4 {[%clk
0:01:37]} 26... fxg4 {[%clk 0:00:49.9]} 27. hxg4 {[%clk 0:01:36.5]} 27... Nf6
{[%clk 0:00:35.6]} 28. Kf3 {[%clk 0:01:35.9]} 28... Nd5 {[%clk 0:00:35.5]} 29.
Nf2 {[%clk 0:01:28.6]} 29... Ke5 {[%clk 0:00:30.3]} 30. c3 {[%clk 0:01:26.7]}
30... g6 {[%clk 0:00:26.4]} 31. Nd3+ {[%clk 0:01:25.3]} 31... Kd6 {[%clk
0:00:23]} 32. a3 {[%clk 0:01:12.9]} 32... Nb6 {[%clk 0:00:19.9]} 33. b3 {[%clk
0:01:09.2]} 33... a4 {[%clk 0:00:17.6]} 34. bxa4 {[%clk 0:01:08]} 34... Nxa4
{[%clk 0:00:18]} 35. Nf4 {[%clk 0:00:58]} 35... g5 {[%clk 0:00:17.2]} 36. Ne2
{[%clk 0:00:57.6]} 36... Kd5 {[%clk 0:00:17.5]} 37. Ke3 {[%clk 0:00:56]} 37...
Kc4 {[%clk 0:00:17.9]} 38. Kd2 {[%clk 0:00:55]} 38... Nc5 {[%clk 0:00:17.1]} 39.
Kc2 {[%clk 0:00:51.7]} 39... Ne4 {[%clk 0:00:17.4]} 40. Nd4 {[%clk 0:00:38]}
40... Nxc3 {[%clk 0:00:16.8]} 41. Nf5 {[%clk 0:00:37.1]} 41... Nd5 {[%clk
0:00:14.3]} 42. Nxh6 {[%clk 0:00:35.6]} 42... Ne3+ {[%clk 0:00:14.7]} 43. Kd2
{[%clk 0:00:34.7]} 43... Kb3 {[%clk 0:00:12.8]} 44. Kxe3 {[%clk 0:00:33.5]}
44... Kxa3 {[%clk 0:00:13.3]} 45. Nf5 {[%clk 0:00:32.2]} 45... b4 {[%clk
0:00:13.9]} 46. Nd4 {[%clk 0:00:32.4]} 46... Kb2 {[%clk 0:00:11.8]} 47. Ke4
{[%clk 0:00:32.1]} 47... Kc3 {[%clk 0:00:12.2]} 48. Ne2+ {[%clk 0:00:19.5]}
48... Kc2 {[%clk 0:00:12.1]} 49. Kf5 {[%clk 0:00:18]} 49... Kd2 {[%clk
0:00:10.1]} 50. Nd4 {[%clk 0:00:17.7]} 50... Kc3 {[%clk 0:00:10.3]} 51. Ne2+
{[%clk 0:00:17.5]} 51... Kd2 {[%clk 0:00:09.5]} 52. Nd4 {[%clk 0:00:17.2]} 52...
Kc3 {[%clk 0:00:10]} 53. Nb5+ {[%clk 0:00:15.1]} 53... Kc4 {[%clk 0:00:10]} 54.
Nd6+ {[%clk 0:00:14.5]} 54... Kd3 {[%clk 0:00:08.3]} 55. Ne4 {[%clk 0:00:09.1]}
55... b3 {[%clk 0:00:07.9]} 56. Nc5+ {[%clk 0:00:09]} 56... Kc4 {[%clk
0:00:04.9]} 57. Nxb3 {[%clk 0:00:08.9]} 57... Kxb3 {[%clk 0:00:05.8]} 58. Kxg5
{[%clk 0:00:09.2]} 1-0

[Event "*** Titled Tuesday Blitz"]
[Site "Chess.com"]
[Date "2020.03.03"]
[Round "7"]
[White "champ2005"]
[Black "AlleyOoper"]
[Result "1-0"]
[WhiteElo "2961"]
[BlackElo "2639"]
[TimeControl "180+1"]
[EndTime "14:17:26 PST"]
[Termination "champ2005 won by resignation"]

1. f4 {[%clk 0:03:00.9]} 1... g6 {[%clk 0:02:53.3]} 2. Nf3 {[%clk 0:03:00.6]}
2... Bg7 {[%clk 0:02:53.7]} 3. g3 {[%clk 0:03:00.6]} 3... d6 {[%clk 0:02:54]} 4.
Bg2 {[%clk 0:03:00.9]} 4... c5 {[%clk 0:02:54.3]} 5. O-O {[%clk 0:03:01]} 5...
Nc6 {[%clk 0:02:55.1]} 6. e4 {[%clk 0:03:01.5]} 6... Bg4 {[%clk 0:02:51.7]} 7.
h3 {[%clk 0:03:00.5]} 7... Bxf3 {[%clk 0:02:51.6]} 8. Qxf3 {[%clk 0:03:01.4]}
8... e6 {[%clk 0:02:50.2]} 9. d3 {[%clk 0:03:01.3]} 9... Nge7 {[%clk 0:02:50.3]}
10. c3 {[%clk 0:02:59.7]} 10... O-O {[%clk 0:02:49.3]} 11. g4 {[%clk 0:03:00]}
11... f5 {[%clk 0:02:48.9]} 12. exf5 {[%clk 0:03:00.9]} 12... gxf5 {[%clk
0:02:48.4]} 13. Qe2 {[%clk 0:03:00.1]} 13... Qd7 {[%clk 0:02:46.5]} 14. Nd2
{[%clk 0:02:56.7]} 14... Rae8 {[%clk 0:02:46.5]} 15. Nf3 {[%clk 0:02:56.9]}
15... Ng6 {[%clk 0:02:41]} 16. Ng5 {[%clk 0:02:56.5]} 16... Nh4 {[%clk
0:02:35.8]} 17. gxf5 {[%clk 0:02:49.7]} 17... Nxf5 {[%clk 0:02:13.2]} 18. Bd2
{[%clk 0:02:49.7]} 18... Ng3 {[%clk 0:02:10.7]} 19. Qg4 {[%clk 0:02:46]} 19...
Nxf1 {[%clk 0:02:10.1]} 20. Rxf1 {[%clk 0:02:46.6]} 20... Rf6 {[%clk 0:01:59.7]}
21. Be4 {[%clk 0:02:37.3]} 21... Rh6 {[%clk 0:01:46.5]} 22. f5 {[%clk 0:02:29]}
22... Ne5 {[%clk 0:00:57.5]} 23. fxe6 {[%clk 0:02:28.5]} 23... Qe7 {[%clk
0:00:57.8]} 24. Qf5 {[%clk 0:02:22.5]} 24... d5 {[%clk 0:00:55.7]} 25. Bxd5
{[%clk 0:02:07.2]} 25... Rg6 {[%clk 0:00:43.5]} 26. Kh1 {[%clk 0:01:35.8]} 26...
Rf8 {[%clk 0:00:39.6]} 27. Nf7 {[%clk 0:00:57.2]} 27... Nxf7 {[%clk 0:00:33.8]}
28. exf7+ {[%clk 0:00:54.8]} 28... Kh8 {[%clk 0:00:34.3]} 29. Qh5 {[%clk
0:00:42.7]} 29... Rf6 {[%clk 0:00:18]} 30. Rg1 {[%clk 0:00:31.4]} 30... R6xf7
{[%clk 0:00:10.4]} 31. Bxf7 {[%clk 0:00:24.8]} 31... Qxf7 {[%clk 0:00:11.3]} 32.
Qxf7 {[%clk 0:00:20.5]} 32... Rxf7 {[%clk 0:00:12.2]} 33. Re1 {[%clk 0:00:17.6]}
33... h6 {[%clk 0:00:09.7]} 34. Kg2 {[%clk 0:00:16.8]} 34... Rd7 {[%clk
0:00:09.6]} 35. Re3 {[%clk 0:00:17.2]} 35... Kg8 {[%clk 0:00:10]} 36. Rf3 {[%clk
0:00:17.2]} 36... Kh7 {[%clk 0:00:09.9]} 37. Kf1 {[%clk 0:00:16.8]} 37... Kg6
{[%clk 0:00:10.4]} 38. Ke2 {[%clk 0:00:17]} 38... Be5 {[%clk 0:00:10.3]} 39. Be3
{[%clk 0:00:17.1]} 39... b6 {[%clk 0:00:09.7]} 40. a4 {[%clk 0:00:17.7]} 40...
Re7 {[%clk 0:00:09.4]} 41. Kd2 {[%clk 0:00:17.4]} 41... Rd7 {[%clk 0:00:09.7]}
42. Kc2 {[%clk 0:00:16.9]} 42... Bf6 {[%clk 0:00:09.6]} 43. Bxh6 {[%clk
0:00:15.3]} 43... Bxc3 {[%clk 0:00:08.6]} 44. bxc3 {[%clk 0:00:15.8]} 44... Kxh6
{[%clk 0:00:09]} 45. a5 {[%clk 0:00:15.9]} 45... bxa5 {[%clk 0:00:07.2]} 46.
Rf6+ {[%clk 0:00:16.4]} 46... Kh5 {[%clk 0:00:06.3]} 47. Ra6 {[%clk 0:00:17.3]}
47... Kh4 {[%clk 0:00:04.1]} 48. Rxa5 {[%clk 0:00:17.3]} 48... Rc7 {[%clk
0:00:04.5]} 49. Kb3 {[%clk 0:00:15.3]} 49... Kxh3 {[%clk 0:00:04.9]} 50. Kc4
{[%clk 0:00:15.8]} 50... Kg3 {[%clk 0:00:04.4]} 51. Rxc5 {[%clk 0:00:16.2]}
51... Rd7 {[%clk 0:00:05]} 52. d4 {[%clk 0:00:16]} 52... Kf4 {[%clk 0:00:05.2]}
53. Re5 {[%clk 0:00:16.5]} 53... Rc7+ {[%clk 0:00:05]} 54. Kd3 {[%clk
0:00:16.9]} 54... Rc8 {[%clk 0:00:05]} 55. Re7 {[%clk 0:00:16.6]} 55... Ra8
{[%clk 0:00:05.2]} 56. Re1 {[%clk 0:00:15.9]} 56... a5 {[%clk 0:00:05]} 57. Ra1
{[%clk 0:00:16.8]} 57... a4 {[%clk 0:00:05.5]} 58. Ra3 {[%clk 0:00:17.3]} 58...
Ra7 {[%clk 0:00:04.9]} 59. Kc4 {[%clk 0:00:16.4]} 59... Ke4 {[%clk 0:00:05.4]}
60. Kb5 {[%clk 0:00:14.5]} 60... Kd3 {[%clk 0:00:04.6]} 61. Rxa4 {[%clk
0:00:14.8]} 61... Rb7+ {[%clk 0:00:05]} 62. Kc6 {[%clk 0:00:14.8]} 62... Rb3
{[%clk 0:00:03.5]} 63. d5 {[%clk 0:00:14.2]} 63... Rxc3+ {[%clk 0:00:03.4]} 64.
Kd7 {[%clk 0:00:14.7]} 1-0